Cogmind - Beta 16 @@@ ROGUE MODE // 2025.11.07 @ 03:27:11 Player: Demo Result: Destroyed by 41-UZX(R) with Subdweller Laser Performance ------------- Evolutions (0) 0 Regions Visited (3) 600 Robots Destroyed (18) 90 Value Destroyed (570) 570 Prototype IDs (0) 0 Alien Tech Used (0) 0 Bonus (30) 30 TOTAL SCORE: 1290 Bonus ------- Follower Combat Kills 30 Cogmind --------- Core Integrity 0/250 Matter 276/300 Energy 399/400 System Corruption 0% Temperature Cool (6) Movement Treading (160) Location -10/Subcaves Parts ------- > --- POWER (1) -------- Subdweller Power Source > --- PROPULSION (2) --- Spiked Treads Subdweller Monowheel > --- UTILITY (2) ------ Large Battery > --- WEAPON (2) ------- Heavy Riot Gun Subdweller Machine Gun > --- INVENTORY (5) ---- Flightbrick Multitool Peak State ------------ > --- POWER ------------ Subdweller Power Source > --- PROPULSION ------- Spiked Treads Subdweller Monowheel > --- UTILITY ---------- Structural Scanner Makeshift Kinetic Plating > --- WEAPON ----------- Heavy Battle Rifle Battle Cannon > --- INVENTORY -------- Flightbrick Dirty Datajack [Rating: 21] Favorites ----------- Power Light Nuclear Core Engine Subdweller Power Source Power Core Light Nuclear Core Propulsion Light Treads Treads Light Treads Wheel Subdweller Monowheel Utility Structural Scanner Device Structural Scanner Storage Large Battery Protection Makeshift Kinetic Plating Weapon Battle Cannon Energy Gun Riot Gun Ballistic Gun Heavy Battle Rifle Ballistic Cannon Battle Cannon Build | -11 -10 -10 -10 ------- Run | Yrd Mat Min Sub Slots Evolved . | . . . . Power . | . . . . Propulsion . | . . . . Utility . | . . . . Weapon . | . . . . Parts Attached 19 | 2 . . 17 Power 3 | . . . 3 Engine 2 | . . . 2 Core 1 | . . . 1 Reactor . | . . . . Propulsion 7 | 2 . . 5 Treads 4 | 2 . . 2 Leg . | . . . . Wheel 3 | . . . 3 Hover . | . . . . Flight . | . . . . Utility 4 | . . . 4 Device 2 | . . . 2 Storage 1 | . . . 1 Processor . | . . . . Hackware . | . . . . Protection 1 | . . . 1 Artifact . | . . . . Weapon 5 | . . . 5 Energy Gun 2 | . . . 2 Energy Cannon . | . . . . Ballistic Gun 2 | . . . 2 Ballistic Cannon 1 | . . . 1 Launcher . | . . . . Special Weapon . | . . . . Impact Weapon . | . . . . Slashing Weapon . | . . . . Piercing Weapon . | . . . . Special Melee Weapon . | . . . . Unidentified Prototypes . | . . . . Parts Lost 5 | . . . 5 Power 1 | . . . 1 Propulsion 1 | . . . 1 Utility 2 | . . . 2 Weapon 1 | . . . 1 Highest Loss Streak 2 | . . . 2 To Critical Strikes . | . . . . Average Backups 1 | . . 1 2 Power . | . . . . Propulsion . | . . . . Utility . | . . 1 . Weapon . | . . . . Tool/Special . | . . . . Unused Backups 5 | . . . 5 Power . | . . . . Propulsion 1 | . . . 1 Utility . | . . . . Weapon 2 | . . . 2 Tool/Special 2 | . . . 2 Average Slot Usage (%) 77 | . 28 28 82 Engine 2 | . . . 2 Core 4 | . . . 4 Treads 24 | . 28 28 24 Wheel 3 | . . . 3 Device 16 | . . . 18 Energy Gun 3 | . . . 3 Ballistic Gun 9 | . . . 10 Ballistic Cannon 10 | . . . 11 Peak Build Rating 21 | 2 2 2 21 Average Rating 13 | 1 2 2 14 On Entrance 1 | . 2 2 2 Avg Prop Armor Cover (%) 29 | 41 41 41 25 Naked Turns . | . . . . Heaviest Build 20 | . . . 20 Greatest Support 40 | 3 3 3 40 Greatest Overweight (x) . | . . . . Average Overweight (x) . | . . . . Largest Inventory Capacity 5 | 5 5 5 5 Average Capacity 5 | 5 5 5 5 Most Carried 5 | . 1 1 5 Average Carried 3 | . . 1 4 Final Capacity 5 | 5 5 5 5 Final Carried 5 | . 1 1 5 Class Distribution -------------------- 95% | Mutant 4% | Derelict-Mutant Dominant Class ---------------- Mutant | -10/Materials Mutant | -10/Mines Mutant | -10/Subcaves Resources | -11 -10 -10 -10 ----------- Run | Yrd Mat Min Sub Matter Collected 997 | 220 . . 777 Remotely . | . . . . Salvage Created 558 | . . . 558 Parts 45 | . . . 45 Haulers Intercepted . | . . . . Recyclers Shooed . | . . . . Parts Field Recycled . | . . . . Retrieved Matter . | . . . . Parts Self-Destructed 24 | . . . 24 Prevented . | . . . . Parts Restored . | . . . . Kills | -11 -10 -10 -10 ------- Run | Yrd Mat Min Sub Combat Hostiles Destroyed 18 | . . . 18 Guns 12 | . . . 12 Cannons 5 | . . . 5 Classes Destroyed 3 | . . . 3 Swarmer 5 | . . . 5 Cobbler 1 | . . . 1 Subdweller 13 | . . . 13 Best Kill Streak 3 | . . . 3 Combat Bots Only 3 | . . . 3 Max Kills in Single Turn 1 | . . . 1 Gunslinging . | . . . . Exploded . | . . . . Melee . | . . . . Uniques/NPCs Destroyed . | . . . . Combat | -11 -10 -10 -10 -------- Run | Yrd Mat Min Sub Hostile Shots Fired 90 | . 13 3 74 Missed 23 | . 4 2 17 Hits 67 | . 9 1 57 Projectile 67 | . 9 1 57 Critical Strikes 3 | . . . 3 Damage Taken 1213 | . 119 18 1076 Core 263 | . 18 18 227 Absorbed by Shields . | . . . . Ignored by Resistances 18 | . . . 18 Core Remaining (%) 100 | 100 . . . Volleys Fired 101 | . . . 101 Largest 2 | . . . 2 Hottest 90 | . . . 90 Shots Fired 187 | . . . 187 Gun 106 | . . . 106 Cannon 81 | . . . 81 Launcher . | . . . . Special . | . . . . Kinetic 168 | . . . 168 Thermal . | . . . . Explosive . | . . . . Electromagnetic 19 | . . . 19 Robot Hit Streak 18 | . . . 18 Robot Miss Streak 4 | . . . 4 Penetration Max . | . . . . Secondary Targets . | . . . . Shots Hit Robots 85 | . . . 85 Core Hits 32 | . . . 32 Critical Kills . | . . . . Critical Parts Destroyed . | . . . . Critical Strikes 2 | . . . 2 Blast 2 | . . . 2 Melee Attacks . | . . . . Impact . | . . . . Slashing . | . . . . Piercing . | . . . . Sneak Attacks . | . . . . Combat Hostiles . | . . . . Follow-up Attacks . | . . . . Damage Inflicted 1639 | . . . 1639 Guns 966 | . . . 966 Cannons 673 | . . . 673 Explosions . | . . . . Melee . | . . . . Ramming . | . . . . Kinetic 1438 | . . . 1438 Thermal . | . . . . Explosive . | . . . . Electromagnetic 201 | . . . 201 Impact . | . . . . Slashing . | . . . . Piercing . | . . . . Highest Corruption . | . . . . Average Corruption . | . . . . Corruption Purged . | . . . . Corruption Blocked . | . . . . Overload Shots . | . . . . Overflow Damage . | . . . . Projectiles . | . . . . Explosions . | . . . . Melee . | . . . . Knockbacks 9 | . . . 9 Impact . | . . . . Kinetic 9 | . . . 9 Secondary . | . . . . Self-Inflicted Damage . | . . . . Shots . | . . . . Rammed . | . . . . Targets Rammed . | . . . . Kicked . | . . . . Crushed . | . . . . Highest Temperature . | . . . . Average Temperature . | . . . . Received Heat Transfer 252 | . 63 9 180 Siege Activations . | . . . . Martial Activations . | . . . . Shielding Activations . | . . . . Robots Disrupted . | . . . . Combat Hostiles . | . . . . Robots Corrupted 1 | . . . 1 Combat Hostiles 1 | . . . 1 Parts Fried 1 | . . . 1 Impact Corruptions . | . . . . Robots Melted . | . . . . Combat Hostiles . | . . . . Parts Melted 1 | . . . 1 Heat Transferred . | . . . . Parts Sabotaged . | . . . . Parts Stolen . | . . . . Parts Stripped . | . . . . Power Chain Reactions . | . . . . Alert | -11 -10 -10 -10 ------- Run | Yrd Mat Min Sub Maximum Alert Level . | . . . . Low Security (%) 100 | 100 100 100 . Level 1 . | . . . . Level 2 . | . . . . Level 3 . | . . . . Level 4 . | . . . . Level 5 . | . . . . High Security . | . . . . Max Security . | . . . . Peak Influence 70 | . 70 23 . Initial 23 | . . 23 . Average 11 | . 18 6 . Influence Increases 227 | . 90 . 137 Destroy 0b10 Robot/C 100 | . . . 100 Destroy Leader 20 | . . . 20 Allied During Kill 2 | . . . 2 Lose Combat Pursuer 105 | . 90 . 15 Influence Decreases 227 | . 30 60 137 Entered New Map 37 | . . 37 . Time Decay 167 | . 30 23 114 Lost Part 20 | . . . 20 Lost Ally 3 | . . . 3 Squads Dispatched 4 | . 4 . . Investigation 1 | . 1 . . Extermination . | . . . . Reinforcement 3 | . 3 . . Assault . | . . . . Garrison . | . . . . Intercept . | . . . . Searches Triggered . | . . . . Construction Impeded . | . . . . Haulers Reinforced . | . . . . Active Scanning Responses . | . . . . Cargo Convoy Interrupts . | . . . . Stealth | -11 -10 -10 -10 --------- Run | Yrd Mat Min Sub Distress Signals . | . . . . Communications Jammed . | . . . . Distress Signals . | . . . . Times Spotted 41 | . 17 3 21 Peak Tracking Total 7 | . 7 3 3 Tactical Retreats 3 | . 2 . 1 Traps | -11 -10 -10 -10 ------- Run | Yrd Mat Min Sub Traps Triggered 2 | . 1 . 1 Indirectly . | . . . . Trap Hack Attempts . | . . . . Triggered . | . . . . Disarmed . | . . . . Reprogrammed . | . . . . Reused . | . . . . Traps Extracted . | . . . . Installed . | . . . . Triggered . | . . . . Most Traps Carried 1 | . . . 1 Machines | -11 -10 -10 -10 ---------- Run | Yrd Mat Min Sub Machines Disabled 1 | . . . 1 Max in Single Turn 1 | . . . 1 Machines Repaired . | . . . . Machines Dismantled . | . . . . Machines Sabotaged . | . . . . Overloaded Fab Kills . | . . . . Hacking | -11 -10 -10 -10 --------- Run | Yrd Mat Min Sub Machines Accessed 2 | . . . 2 Terminals . | . . . . Fabricators . | . . . . Repair Stations . | . . . . Recycling Units . | . . . . Scanalyzers . | . . . . Garrison Access . | . . . . Total Hacks 5 | . . . 5 Successful 5 | . . . 5 Failed . | . . . . Catastrophic . | . . . . Database Lockouts . | . . . . Manual 4 | . . . 4 Terminals . | . . . . Fabricators . | . . . . Repair Stations . | . . . . Recycling Units . | . . . . Scanalyzers . | . . . . Garrison Access . | . . . . Terminal Hacks 5 | . . . 5 Record 4 | . . . 4 Open Door 1 | . . . 1 Fabricator Hacks . | . . . . Repair Station Hacks . | . . . . Recycling Unit Hacks . | . . . . Scanalyzer . | . . . . Garrison Access Hacks . | . . . . Unauthorized Hacks . | . . . . Terminals . | . . . . Fabricators . | . . . . Repair Stations . | . . . . Recycling Units . | . . . . Scanalyzers . | . . . . Garrison Access . | . . . . Data Cores Recovered . | . . . . Used . | . . . . Hacking Detections . | . . . . Full Trace Events . | . . . . Feedback Events . | . . . . Feedback Blocked . | . . . . Robot Schematics Acquired . | . . . . Robots Built . | . . . . Authchips . | . . . . Time . | . . . . Total Robot Build Rating . | . . . . Part Schematics Acquired . | . . . . Parts Built . | . . . . Authchips . | . . . . Time . | . . . . Total Part Build Rating . | . . . . Part Studies Acquired . | . . . . Parts Repaired . | . . . . Time . | . . . . Parts Recycled . | . . . . Recycled Matter . | . . . . Retrieved Matter . | . . . . Retrieved Components . | . . . . Parts Scanalyzed . | . . . . Part Schematics Acquired . | . . . . Parts Damaged . | . . . . Bothacking | -11 -10 -10 -10 ------------ Run | Yrd Mat Min Sub Used RIF Installer . | . . . . Robots Hacked . | . . . . Non-combat . | . . . . Combat . | . . . . Robot Hacks Applied . | . . . . Relay Couplers Released . | . . . . Fabnet Peak Effective % . | . . . . Robots Rewired . | . . . . Allies Hacked . | . . . . Hacks Repelled . | . . . . Allies | -11 -10 -10 -10 -------- Run | Yrd Mat Min Sub Total Allies 5 | . . 5 . Largest Group 5 | . . 5 5 Highest-Rated Group 81 | . . 81 81 Highest-Rated Ally 31 | . . 31 31 Total Orders . | . . . . Ally Attacks 19 | . . . 19 Total Damage 255 | . . . 255 Kills 1 | . . . 1 Allies Corrupted . | . . . . Allies Melted . | . . . . Intel | -11 -10 -10 -10 ------- Run | Yrd Mat Min Sub Active Infowar (turns) 2141 | . . . 2141 Structural 2141 | . . . 2141 Robot Analysis Total . | . . . . Derelict Logs Recovered 2 | . . 1 1 Drone Launches . | . . . . Drone Recoveries . | . . . . Exploration | -11 -10 -10 -10 ------------- Run | Yrd Mat Min Sub Turns Passed 2843 | 17 113 120 2593 Spaces Moved 2134 | 27 223 130 1754 Core 783 | 27 223 130 403 Treads 910 | . . . 910 Legs . | . . . . Wheels 441 | . . . 441 Hover . | . . . . Flight . | . . . . Fastest Speed 50 | 50 50 50 50 Average Speed 109 | 50 50 50 122 Slowest Speed 160 | 50 50 50 160 Overloaded Moves . | . . . . Propulsion Burnouts . | . . . . Robots Hopped . | . . . . Potential Cave-ins 1 | . . . 1 Cave-ins Triggered . | . . . . Exploration Rate (%) 51 | 4 72 42 88 Regions Visited 3 Branch Regions 2 Pre-discovered Areas 1 | . . . 1 Known Exits Taken . | . . . . Unknown Exits Taken 3 | 1 1 1 . Scrap Searched 11 | . . 1 10 Spaces Dug 3 | . . . 3 Terrain Destroyed 8 | . . . 8 Melee . | . . . . Projectile 8 | . . . 8 AOE . | . . . . Terrain Rammed . | . . . . Walls Destroyed . | . . . . Machines Disabled . | . . . . Actions | -11 -10 -10 -10 --------- Run | Yrd Mat Min Sub Total 2453 | 28 223 184 2018 Wait 179 | . . 55 124 Move 2131 | 26 222 129 1754 Hop . | . . . . Pick Up 9 | . 1 . 8 Fast Attach 12 | 2 . . 10 Attach 2 | . . . 2 Detach . | . . . . Swap 6 | . . . 6 Drop 13 | . . . 13 Fire 101 | . . . 101 Melee . | . . . . Ram . | . . . . Kick . | . . . . Crush . | . . . . Escape Stasis . | . . . . Rewire . | . . . . Trap . | . . . . Miscellaneous . | . . . . Route ------- -11/Scrapyard -10/Materials (discovered 4 exits: [*Mat x2] / [*Min x2]) -10/Mines -10/Subcaves (discovered 2 exits: [*Mat x2]) History --------- Turn | Location | Event 4 | -11/Scrapyard | Discovered new exit (range 14) 18 | -11/Scrapyard | Entered Materials 43 | -10/Materials | Discovered new exit (range 5) 83 | -10/Materials | Discovered new exit (range 6) 110 | -10/Materials | Discovered new exit (range 13) 125 | -10/Materials | Discovered new exit (range 9) 131 | -10/Materials | Entered Mines 139 | -10/Mines | Learned Materials terminal intel 145 | -10/Mines | Assisted by bots powering up and referring to "LRC-V3" 232 | -10/Mines | Discovered new exit (range 4) 251 | -10/Mines | Entered Subcaves 251 | -10/Subcaves | Accompanied by 5 allies 256 | -10/Subcaves | Led the pair of lost Derelicts to an unsafe place 290 | -10/Subcaves | Learned Materials garrison access intel 315 | -10/Subcaves | Build established: Mutant 379 | -10/Subcaves | Visited Clippyterm 381 | -10/Subcaves | Learned Factory fabricator intel 831 | -10/Subcaves | Learned location of Zion (-6) 831 | -10/Subcaves | Met a Zionite searching for "candidates" 863 | -10/Subcaves | A swath of the cavern ceiling suddenly collapsed 903 | -10/Subcaves | Shifting Twisted Machinery released Battle Rifle 949 | -10/Subcaves | Shifting Twisted Machinery released Flamer 1170 | -10/Subcaves | Visited 4L-MR0's lab 1191 | -10/Subcaves | Found Prototype Flight Unit 1324 | -10/Subcaves | A swath of the cavern ceiling suddenly collapsed 1462 | -10/Subcaves | Discovered new exit (range 8) 1504 | -10/Subcaves | Discovered new exit (range 9) 1921 | -10/Subcaves | Core integrity fell below 50% 2337 | -10/Subcaves | Core integrity fell below 20% 2501 | -10/Subcaves | Disturbed a concealed Subdweller 2648 | -10/Subcaves | Disturbed a concealed Subdweller 2844 | -10/Subcaves | Destroyed by 41-UZX(R) with Subdweller Laser Last Messages --------------- 02674_ Acquired 20 matter. 02682_ Dropped Battle Cannon. 02682_ Acquired Hvy. Riot Gun. 02686_ Subatomizers dissect the Sub. Monowheel. 02695_ Mak. Kinetic Plating destroyed. 02698_ HH-QWR(R) system terminally corrupted. 02698_ Sub. Power Source fried. 02701_ Subatomizers dissect the Sub. Monowheel. 02706_ 8U-G46(R) destroyed. 02710_ Acquired 21 matter. 02712_ Extracted 148 energy. 02713_ Acquired Lrg. Battery. 02718_ Dropped Sub. Monowheel. 02721_ Acquired 5 matter. 02723_ Acquired 15 matter. 02726_ Dropped Spk. Treads. 02728_ Acquired 10 matter. 02740_ Subatomizers dissect the Corrupted Disposable Heat Sink. 02843_ 41-UZX(R): "SLEEPOVER!" Map ----- +----------------------------------------------------+ | ?????# # # # #####????????????????#### ## | | ?????# ## #### #????????????????### ## | | ?????# # # ## #??????????######## ### | | ?????##### ##?????????######## ##### | | ??????#### #?????????##=%### = ##??? | | ????????### ## #?????????##]]#!#"&! ###??? | | ???????## #### #?????????###[*% !! ###??? | | ???????# #?# #?????????##%=[##"%& ###?? | | ??????## ### ##?????????## %## *& ###?? | | ????### ## #??????????####### #### | | ???## ## ##??????????####### ####### | | ???# #####????????????????## #### | | ???## ## |##???????????????????## # ### | | ????## ### #???????????????????##### ### | | ?????# #### #????????????????#### ## | | ####?# #?## ##??????????????????## # # # | | """### ##### ##???????????????????### # | | "" ## #######????????????????????#### # | | "X #???????????????????????## ### | | "" ## #??????????????????????## ## | | """## #??????????????????????## ## | | #### # #??????????????######?## ## | | ???## #########???????????#### # ### # # # | | ????# ##???????????????????#"" ### # | | ????#####??????????????####??#" " ### # | | ???????????????????????# @#### "## # # ### ## | | ???????????????????????#R ######## ### ## | | ??????????????????????# ########???#### ## # | | ??????????????????????##??????????##" ## ## | | ??????????????????????????????????#"" ## # | | ??????????????????????????????????#"" #### # | | ??????????????????????????????????#"" ##??####### | | ??????????????????????????????????######???######? | | ?????????????????????????????????????????????????? | | ?????????????????????????????????????????????????? | | ?????????????????????????????????????????????????? | | ?????????????????????????????????????????????????? | | ?????????????????????????????????????????????????? | | ?????????????????????????????????????????????????? | | ?????????????????????????????????????????????????? | | ?????????????????????????????????????????????????? | | ?????????????????????????????????????????????????? | | ?????????????????????????????????????????????????? | | ?????????????????????????????????????????????????? | | ?????????????????????????????????????????????????? | | ?????????????????????????????????????????????????? | | ?????????????????????????????????????????????????? | | ?????????????????????????????????????????????????? | | | | | +----------------------------------------------------+ Best States ------------- Heat Dissipation 25 Energy Generation 5 Energy Capacity 400 Matter Stores 300 Matter Capacity 300 Sight Range 16 Terrain Scan Density 10 Armor Coverage 100 Resistance: KI 10 Evasion (%) 50 Recoil Reduction 2 Item Schematics ----------------- None Robot Schematics ------------------ None Fabricated ------------ Nothing Repaired ---------- Nothing Studied --------- None Alien Tech Used ----------------- None Achievements -------------- None Challenges ------------ None Game ------ Seed VoltaicNeutrinoShredder Manual? 0 Play Time 00:13:35 Cumulative 379.8 hours Start 2025.11.07 @ 03:15:38 End 2025.11.07 @ 03:27:11 Sessions 1 Manual Loads 0 Difficulty Rogue Special Mode None Game No. 341 Rogue 341 Adventurer 0 Explorer 0 Win Type - Total 3 Types 2/1/0/0/0/0/0/0/0/0 Lore% 84 Gallery% 83 Achievement% 60 Wizard Run 0 Options --------- Layout 1 ASCII 0 Keyboard 0 Movement Numpad Keybinds 0 Fullscreen 1 Font 24/Smallcaps Map View 50x35 Zoom Use 0% Tactical HUD 1 Map Filters NONE Filters NONE Steam 1 RUN: f76a479d-54af-4411-8dcd-ff1401321910